fUSD/lending_fUSD_20251206
["ID","MTS","AMOUNT","RATE_DAILY","PERIOD"]
[396554585,1765048251363,-500.0,0.00016712,2]
[396554586,1765048251373,-500.0,0.00016712,2]
[396554587,1765048251383,-500.0,0.00016712,2]
[396554588,1765048251395,-605.33,0.00016712,2]
[396554589,1765048251406,-500.0,0.00016712,2]
[396554590,1765048251417,-500.0,0.00016712,2]
[396554591,1765048251428,-500.0,0.00016712,2]
[396554592,1765048251439,-500.0,0.00016712,2]
[396554593,1765048251450,-500.0,0.00016712,2]
[396554594,1765048251461,-500.0,0.00016712,2]
[396554595,1765048251472,-500.0,0.00016712,2]
[396554596,1765048251482,-500.0,0.00016712,2]
[396554597,1765048251494,-500.0,0.00016712,2]
[396554598,1765048251505,-500.0,0.00016712,2]
[396554599,1765048251515,-500.0,0.00016712,2]
[396554600,1765048251525,-500.0,0.00016712,2]
[396554601,1765048251536,-500.0,0.00016712,2]
[396554602,1765048251547,-2155.94,0.00016712,2]
[396554603,1765048251557,-500.0,0.00016712,2]
[396554604,1765048251570,-466.45218737,0.00016712,2]
[396554605,1765048251581,-2435.35,0.00016712,2]
[396554606,1765048251593,-1387.0,0.00016712,2]
[396554607,1765048251605,-500.0,0.00016712,2]
[396554608,1765048251616,-500.0,0.00016712,2]
[396554609,1765048251629,-500.0,0.00016712,2]
[396554610,1765048251641,-814.61,0.00016712,2]
[396554611,1765048251655,-500.0,0.00016712,2]
[396554612,1765048251668,-257.02268781,0.00016712,2]
[396554613,1765048251681,-500.0,0.00016712,2]
[396554614,1765048251695,-500.0,0.00016712,2]
[396554615,1765048251707,-979.69,0.00016712,2]
[396554616,1765048251939,-500.0,0.00016712,2]
[396554617,1765048251950,-500.0,0.00016712,2]
[396554618,1765048251960,-781.12,0.00016712,2]
[396554619,1765048251971,-500.0,0.00016712,2]
[396554620,1765048251981,-500.0,0.00016712,2]
[396554621,1765048251991,-500.0,0.00016712,2]
[396554622,1765048252001,-500.0,0.00016712,2]
[396554623,1765048252013,-694.41,0.00016712,2]
[396554624,1765048252025,-500.0,0.00016712,2]
[396554625,1765048252038,-500.0,0.00016712,2]
[396554626,1765048252049,-500.0,0.00016712,2]
[396554627,1765048252061,-500.0,0.00016712,2]
[396554628,1765048252072,-526.7,0.00016712,2]
[396554629,1765048252083,-500.0,0.00016712,2]
[396554630,1765048252095,-500.0,0.00016712,2]
[396554631,1765048252106,-500.0,0.00016712,2]
[396554632,1765048252118,-500.0,0.00016712,2]
[396554633,1765048252131,-500.0,0.00016712,2]
[396554634,1765048252142,-500.0,0.00016712,2]
[396554635,1765048252153,-500.0,0.00016712,2]
[396554636,1765048252163,-500.0,0.00016712,2]
[396554637,1765048252174,-500.0,0.00016712,2]
[396554638,1765048252185,-500.0,0.00016712,2]
[396554639,1765048252197,-1912.17,0.00016712,2]
[396554640,1765048252209,-500.0,0.00016712,2]
[396554641,1765048252220,-500.0,0.00016712,2]
[396554642,1765048252232,-500.0,0.00016712,2]
[396554643,1765048252244,-500.0,0.00016712,2]
[396554644,1765048252255,-705.34,0.00016712,2]
[396554645,1765048252266,-500.0,0.00016712,2]
[396554646,1765048252278,-500.0,0.00016712,2]
[396554647,1765048252289,-741.14,0.00016712,2]
[396554648,1765048252301,-500.0,0.00016712,2]
[396554649,1765048252312,-500.0,0.00016712,2]
[396554650,1765048252323,-322.16423177,0.00016712,2]
[396554651,1765048252335,-500.0,0.00016712,2]
[396554652,1765048252347,-500.0,0.00016712,2]
[396554653,1765048252359,-539.14111582,0.00016712,2]
[396554654,1765048252370,-1000.0,0.00016712,2]
[396554655,1765048252381,-500.0,0.00016712,2]
[396554656,1765048252392,-500.0,0.00016712,2]
[396554657,1765048252404,-500.0,0.00016712,2]
[396554658,1765048252414,-500.0,0.00016712,2]
[396554659,1765048252427,-500.0,0.00016712,2]
[396554660,1765048252440,-2439.85,0.00016712,2]
[396554661,1765048252452,-2245.84,0.00016712,2]
[396554662,1765048252464,-500.0,0.00016712,2]
[396554663,1765048252475,-500.0,0.00016712,2]
[396554664,1765048252486,-2179.4,0.00016712,2]
[396554665,1765048252497,-515.97,0.00016712,2]
[396554666,1765048252509,-500.0,0.00016712,2]
[396554667,1765048252520,-500.0,0.00016712,2]
[396554668,1765048252530,-500.0,0.00016712,2]
[396554669,1765048252540,-500.0,0.00016712,2]
[396554670,1765048252551,-2458.23,0.00016712,2]
[396554671,1765048252560,-500.0,0.00016712,2]
[396554672,1765048252571,-500.0,0.00016712,2]
[396554673,1765048252581,-500.0,0.00016712,2]
[396554674,1765048252592,-500.0,0.00016712,2]
[396554675,1765048252606,-500.0,0.00016712,2]
[396554676,1765048252617,-4440.69,0.00016712,2]
[396554677,1765048252629,-500.0,0.00016712,2]
[396554678,1765048252640,-2153.55,0.00016712,2]
[396554679,1765048252650,-2332.18,0.00016712,2]
[396554680,1765048252662,-500.0,0.00016712,2]
[396554681,1765048252674,-500.0,0.00016712,2]
[396554682,1765048252685,-500.0,0.00016712,2]
[396554683,1765048252697,-500.0,0.00016712,2]
[396554684,1765048252709,-500.0,0.00016712,2]
[396554685,1765048252724,-500.0,0.00016712,2]
[396554686,1765048252737,-500.0,0.00016712,2]
[396554687,1765048252749,-500.0,0.00016712,2]
[396554688,1765048252761,-500.0,0.00016712,2]
[396554689,1765048252771,-500.0,0.00016712,2]
[396554690,1765048252782,-500.0,0.00016712,2]
[396554691,1765048252792,-500.0,0.00016712,2]
[396554692,1765048252804,-500.0,0.00016712,2]
[396554693,1765048252815,-500.0,0.00016712,2]
[396554694,1765048252827,-500.0,0.00016712,2]
[396554695,1765048252838,-500.0,0.00016712,2]
[396554696,1765048252849,-2150.59,0.00016712,2]
[396554697,1765048252860,-1992.46,0.00016712,2]
[396554698,1765048252871,-646.05,0.00016712,2]
[396554699,1765048252881,-2322.67,0.00016712,2]
[396554700,1765048252893,-500.0,0.00016712,2]
[396554701,1765048252903,-500.0,0.00016712,2]
[396554702,1765048252914,-667.69,0.00016712,2]
[396554704,1765048252926,-639.16362347,0.00016712,2]
[396554706,1765048252937,-500.0,0.00016712,2]
[396554707,1765048252947,-1287.34,0.00016712,2]
[396554708,1765048252958,-500.0,0.00016712,2]
[396554709,1765048252968,-500.0,0.00016712,2]
[396554710,1765048252980,-500.0,0.00016712,2]
[396554711,1765048252991,-500.0,0.00016712,2]
[396554712,1765048253004,-500.0,0.00016712,2]
[396554713,1765048253016,-583.88,0.00016712,2]
[396554714,1765048253030,-500.0,0.00016712,2]
[396554715,1765048253041,-500.0,0.00016712,2]
[396554716,1765048253053,-500.0,0.00016712,2]
[396554717,1765048253064,-500.0,0.00016712,2]
[396554718,1765048253077,-1968.91,0.00016712,2]
[396554719,1765048253088,-500.0,0.00016712,2]
[396554720,1765048253099,-500.0,0.00016712,2]
[396554721,1765048253110,-500.0,0.00016712,2]
[396554722,1765048253122,-500.0,0.00016712,2]
[396554723,1765048253132,-500.0,0.00016712,2]
[396554724,1765048253143,-500.0,0.00016712,2]
[396554725,1765048253155,-500.0,0.00016712,2]
[396554726,1765048253166,-500.0,0.00016712,2]
[396554727,1765048253179,-502.78449621,0.00016712,2]
[396554728,1765048253192,-500.0,0.00016712,2]
[396554729,1765048253203,-500.0,0.00016712,2]
[396554730,1765048253214,-500.0,0.00016712,2]
[396554731,1765048253227,-504.16999678,0.00016712,2]
[396554732,1765048253238,-2562.99,0.00016712,2]
[396554733,1765048253250,-500.0,0.00016712,2]
[396554734,1765048253261,-500.0,0.00016712,2]
[396554735,1765048253272,-520.05597148,0.00016712,2]
[396554736,1765048253283,-500.0,0.00016712,2]
[396554737,1765048253295,-500.0,0.00016712,2]
[396554738,1765048253307,-500.0,0.00016712,2]
[396554739,1765048253318,-500.0,0.00016712,2]
[396554740,1765048253329,-504.04401512,0.00016712,2]
[396554741,1765048253341,-640.81,0.00016712,2]
[396554742,1765048253356,-531.64,0.00016712,2]
[396554743,1765048253369,-500.0,0.00016712,2]
[396554744,1765048253382,-500.0,0.00016712,2]
[396554745,1765048253394,-500.0,0.00016712,2]
[396554746,1765048253405,-500.0,0.00016712,2]
[396554747,1765048253417,-500.0,0.00016712,2]
[396554748,1765048253430,-500.30907643,0.00016712,2]
[396554749,1765048253441,-548.4,0.00016712,2]
[396554750,1765048253453,-500.0,0.00016712,2]
[396554751,1765048253464,-197.26698041,0.00016712,2]
[396554752,1765048253477,-515.64,0.00016712,2]
[396554753,1765048253490,-500.0,0.00016712,2]
[396554754,1765048253502,-500.0,0.00016712,2]
[396554755,1765048253513,-1806.68,0.00016712,2]
[396554756,1765048253523,-497.85665995,0.00016712,2]
[396554757,1765048253534,-996.1,0.00016712,2]
[396554758,1765048253545,-500.0,0.00016712,2]
[396554759,1765048253556,-500.0,0.00016712,2]
[396554760,1765048253567,-500.0,0.00016712,2]
[396554761,1765048253578,-500.0,0.00016712,2]
[396554762,1765048253589,-507.9,0.00016712,2]
[396554763,1765048253601,-2018.46,0.00016712,2]
[396554764,1765048253611,-500.0,0.00016712,2]
[396554765,1765048253622,-500.0,0.00016712,2]
[396554766,1765048253634,-500.0,0.00016712,2]
[396554767,1765048253644,-500.0,0.00016712,2]
[396554768,1765048253656,-500.0,0.00016712,2]
[396554769,1765048253666,-500.0,0.00016712,2]
[396554770,1765048253677,-500.0,0.00016712,2]
[396554771,1765048253690,-500.0,0.00016712,2]
[396554772,1765048253700,-1646.22,0.00016712,2]
[396554773,1765048253712,-1814.29,0.00016712,2]
[396554774,1765048253725,-500.0,0.00016712,2]
[396554775,1765048253739,-591.12,0.00016712,2]
[396554776,1765048253750,-1849.36,0.00016712,2]
[396554777,1765048253762,-500.0,0.00016712,2]
[396554778,1765048253774,-500.0,0.00016712,2]
[396554779,1765048253786,-500.0,0.00016712,2]
[396554780,1765048253797,-500.0,0.00016712,2]
[396554781,1765048253809,-500.0,0.00016712,2]
[396554782,1765048253820,-500.0,0.00016712,2]
[396554783,1765048253832,-1152.0,0.00016712,2]
[396554784,1765048253843,-500.0,0.00016712,2]
[396554785,1765048253853,-500.0,0.00016712,2]
[396554786,1765048253864,-500.0,0.00016712,2]
[396554787,1765048253876,-2080.47,0.00016712,2]
[396554788,1765048253888,-2151.02,0.00016712,2]
[396554789,1765048253899,-655.05,0.00016712,2]
[396554790,1765048253912,-500.0,0.00016712,2]
[396554791,1765048253926,-3984.36,0.00016712,2]
[396554792,1765048253937,-500.0,0.00016712,2]
[396554793,1765048253948,-1561.68,0.00016712,2]
[396554794,1765048253960,-2394.24,0.00016712,2]
[396554795,1765048253972,-500.0,0.00016712,2]
[396554796,1765048253983,-500.0,0.00016712,2]
[396554797,1765048253996,-4795.04,0.00016712,2]
[396554798,1765048254009,-500.0,0.00016712,2]
[396554799,1765048254020,-1921.9,0.00016712,2]
[396554800,1765048254032,-500.0,0.00016712,2]
[396554801,1765048254043,-1071.22,0.00016712,2]
[396554802,1765048254055,-635.69,0.00016712,2]
[396554803,1765048254069,-500.0,0.00016712,2]
[396554804,1765048254080,-500.0,0.00016712,2]
[396554805,1765048254093,-500.0,0.00016712,2]
[396554806,1765048254105,-708.54,0.00016712,2]
[396554807,1765048254116,-500.0,0.00016712,2]
[396554808,1765048254127,-2334.12,0.00016712,2]
[396554809,1765048254139,-500.0,0.00016712,2]
[396554810,1765048254151,-597.98,0.00016712,2]
[396554811,1765048254163,-500.0,0.00016712,2]
[396554812,1765048254175,-7493.23,0.00016712,2]
[396554813,1765048254188,-500.0,0.00016712,2]
[396554814,1765048254199,-708.49,0.00016712,2]
[396554815,1765048254211,-500.0,0.00016712,2]
[396554816,1765048254222,-500.0,0.00016712,2]
[396554817,1765048254234,-781.0,0.00016712,2]
[396554818,1765048254245,-500.0,0.00016712,2]
[396554819,1765048254256,-500.0,0.00016712,2]
[396554820,1765048254267,-1909.22,0.00016712,2]
[396554821,1765048254279,-2246.41,0.00016712,2]
[396554822,1765048254290,-500.0,0.00016712,2]
[396554823,1765048254302,-500.0,0.00016712,2]
[396554824,1765048254313,-500.0,0.00016712,2]
[396554825,1765048254324,-2238.81,0.00016712,2]
[396554826,1765048254335,-500.0,0.00016712,2]
[396554827,1765048254346,-500.0,0.00016712,2]
[396554828,1765048254361,-500.0,0.00016712,2]
[396554829,1765048254373,-500.0,0.00016712,2]
[396554830,1765048254386,-500.0,0.00016712,2]
[396554831,1765048254399,-500.0,0.00016712,2]
[396554832,1765048254411,-1217.9,0.00016712,2]
[396554833,1765048254422,-1890.03,0.00016712,2]
[396554834,1765048254432,-500.0,0.00016712,2]
[396554835,1765048254444,-500.0,0.00016712,2]
[396554836,1765048254455,-1762.67,0.00016712,2]
[396554837,1765048254466,-500.0,0.00016712,2]
[396554838,1765048254477,-500.0,0.00016712,2]
[396554839,1765048254488,-500.0,0.00016712,2]
[396554840,1765048254499,-2069.3,0.00016712,2]
[396554841,1765048254512,-500.0,0.00016712,2]
[396554842,1765048254523,-500.0,0.00016712,2]
[396554843,1765048254535,-500.0,0.00016712,2]
[396554844,1765048254550,-578.4,0.00016712,2]
[396554845,1765048254564,-2372.9,0.00016712,2]
[396554846,1765048254575,-500.0,0.00016712,2]
[396554847,1765048254587,-2020.73,0.00016712,2]
[396554848,1765048254598,-2214.52,0.00016712,2]
[396554849,1765048254612,-553.25681469,0.00016712,2]
[396554850,1765048254625,-2628.93,0.00016712,2]
[396554851,1765048254641,-314.72802331,0.00016712,2]
[396554852,1765048254653,-500.0,0.00016712,2]
[396554853,1765048254665,-500.0,0.00016712,2]
[396554854,1765048254677,-500.0,0.00016712,2]
[396554855,1765048254688,-1836.5,0.00016712,2]
[396554856,1765048254699,-500.0,0.00016712,2]
[396554857,1765048254712,-2873.27,0.00016712,2]
[396554858,1765048254724,-500.0,0.00016712,2]
[396554859,1765048254741,-500.0,0.00016712,2]
[396554860,1765048254753,-500.0,0.00016712,2]
[396554861,1765048254763,-500.0,0.00016712,2]
[396554862,1765048254775,-581.32,0.00016712,2]
[396554863,1765048254786,-519.05,0.00016712,2]
[396554864,1765048254798,-2187.7,0.00016712,2]
[396554865,1765048254811,-500.0,0.00016712,2]
[396554866,1765048254822,-500.0,0.00016712,2]
[396554867,1765048254834,-2049.04,0.00016712,2]
[396554868,1765048254845,-500.0,0.00016712,2]
[396554869,1765048254920,-2081.34,0.00016712,2]
[396554870,1765048254932,-1964.98,0.00016712,2]
[396554871,1765048254943,-500.0,0.00016712,2]
[396554872,1765048254953,-1736.27,0.00016712,2]
[396554873,1765048254965,-500.0,0.00016712,2]
[396554874,1765048254976,-1689.29,0.00016712,2]
[396554875,1765048254987,-500.0,0.00016712,2]
[396554876,1765048254997,-500.0,0.00016712,2]
[396554877,1765048255008,-500.0,0.00016712,2]
[396554878,1765048255019,-500.0,0.00016712,2]
[396554879,1765048255030,-521.45,0.00016712,2]
[396554880,1765048255041,-1547.92,0.00016712,2]
[396554881,1765048255053,-2679.55,0.00016712,2]
[396554882,1765048255065,-500.0,0.00016712,2]
[396554883,1765048255075,-500.0,0.00016712,2]
[396554884,1765048255086,-500.0,0.00016712,2]
[396554885,1765048255097,-500.0,0.00016712,2]
[396554886,1765048255107,-500.0,0.00016712,2]
[396554887,1765048255117,-2147.98,0.00016712,2]
[396554888,1765048255128,-500.0,0.00016712,2]
[396554889,1765048255138,-500.0,0.00016712,2]
[396554890,1765048255149,-500.0,0.00016712,2]
[396554891,1765048255159,-500.0,0.00016712,2]
[396554892,1765048255169,-500.0,0.00016712,2]
[396554893,1765048255179,-2287.26,0.00016712,2]
[396554894,1765048255190,-500.0,0.00016712,2]
[396554895,1765048255200,-1000.0,0.00016712,2]
[396554896,1765048255212,-500.0,0.00016712,2]
[396554897,1765048255222,-503.92500125,0.00016712,2]
[396554898,1765048255232,-500.0,0.00016712,2]
[396554899,1765048255243,-500.0,0.00016712,2]
[396554900,1765048255253,-3490.42,0.00016712,2]
[396554901,1765048255262,-500.0,0.00016712,2]
[396554902,1765048255272,-500.0,0.00016712,2]
[396554903,1765048255282,-500.0,0.00016712,2]
[396554904,1765048255293,-2349.83,0.00016712,2]
[396554905,1765048255304,-2279.83,0.00016712,2]
[396554906,1765048255314,-500.0,0.00016712,2]
[396554907,1765048255323,-6603.58,0.00016712,2]
[396554908,1765048255333,-500.0,0.00016712,2]
[396554909,1765048255343,-500.0,0.00016712,2]
[396554910,1765048255352,-500.0,0.00016712,2]
[396554911,1765048255362,-500.0,0.00016712,2]
[396554912,1765048255371,-2371.64,0.00016712,2]
[396554913,1765048255381,-500.0,0.00016712,2]
[396554914,1765048255391,-793.84,0.00016712,2]
[396554915,1765048255400,-544.67,0.00016712,2]
[396554916,1765048255409,-2520.07,0.00016712,2]
[396554917,1765048255419,-518.19,0.00016712,2]
[396554918,1765048255429,-500.0,0.00016712,2]
[396554919,1765048255439,-1031.92,0.00016712,2]
[396554920,1765048255451,-500.0,0.00016712,2]
[396554921,1765048255461,-529.53,0.00016712,2]
[396554922,1765048255471,-1766.3,0.00016712,2]
[396554923,1765048255481,-911.12,0.00016712,2]
[396554924,1765048255491,-500.0,0.00016712,2]
[396554925,1765048255501,-500.0,0.00016712,2]
[396554926,1765048255511,-8852.44,0.00016712,2]
[396554927,1765048255520,-2277.0,0.00016712,2]
[396554928,1765048255530,-654.66,0.00016712,2]
[396554929,1765048255541,-500.0,0.00016712,2]
[396554930,1765048255552,-1653.24,0.00016712,2]
[396554931,1765048255562,-2068.14,0.00016712,2]
[396554932,1765048255572,-7655.48,0.00016712,2]
[396554933,1765048255582,-2195.35,0.00016712,2]
[396554934,1765048255592,-642.34,0.00016712,2]
[396554935,1765048255602,-1752.01,0.00016712,2]
[396554936,1765048255612,-500.0,0.00016712,2]
[396554937,1765048255622,-500.0,0.00016712,2]
[396554938,1765048255633,-500.0,0.00016712,2]
[396554939,1765048255643,-500.0,0.00016712,2]
[396554940,1765048255652,-500.0,0.00016712,2]
[396554941,1765048255662,-1121.36,0.00016712,2]
[396554942,1765048255672,-500.0,0.00016712,2]
[396554943,1765048255682,-500.0,0.00016712,2]
[396554944,1765048255692,-2195.24,0.00016712,2]
[396554945,1765048255702,-500.0,0.00016712,2]
[396554946,1765048255720,-950.37,0.00016712,2]
[396554947,1765048255735,-2056.15,0.00016712,2]
[396554948,1765048255745,-861.53,0.00016712,2]
[396554949,1765048255755,-2407.08,0.00016712,2]
[396554950,1765048255764,-500.0,0.00016712,2]
[396554951,1765048255775,-500.0,0.00016712,2]
[396554952,1765048255785,-581.46,0.00016712,2]
[396554953,1765048255795,-500.0,0.00016712,2]
[396554954,1765048255806,-500.0,0.00016712,2]
[396554955,1765048255816,-2450.37,0.00016712,2]
[396554956,1765048255825,-2303.1,0.00016712,2]
[396554957,1765048255835,-500.0,0.00016712,2]
[396554958,1765048255845,-1272.6,0.00016712,2]
[396554959,1765048255855,-2189.29,0.00016712,2]
[396554960,1765048255866,-500.0,0.00016712,2]
[396554961,1765048255875,-500.0,0.00016712,2]
[396554962,1765048255886,-500.0,0.00016712,2]
[396554963,1765048255895,-2274.97,0.00016712,2]
[396554964,1765048255906,-1253.95,0.00016712,2]
[396554965,1765048255916,-500.0,0.00016712,2]
[396554966,1765048255926,-500.0,0.00016712,2]
[396554967,1765048255936,-500.0,0.00016712,2]
[396554968,1765048255945,-2557.11,0.00016712,2]
[396554969,1765048255955,-500.0,0.00016712,2]
[396554970,1765048255965,-500.0,0.00016712,2]
[396554971,1765048255974,-577.85,0.00016712,2]
[396554972,1765048255984,-500.0,0.00016712,2]
[396554973,1765048255993,-764.38,0.00016712,2]
[396554974,1765048256003,-500.0,0.00016712,2]
[396554975,1765048256012,-500.0,0.00016712,2]
[396554976,1765048256022,-500.0,0.00016712,2]
[396554977,1765048256032,-607.84,0.00016712,2]
[396554978,1765048256042,-213.32949819,0.00016712,2]
[396554979,1765048256078,-316.20050181,0.00016712,2]
[396554980,1765048256088,-500.0,0.00016712,2]
[396554981,1765048256097,-500.0,0.00016712,2]
[396554982,1765048256107,-2444.61,0.00016712,2]
[396554983,1765048256116,-500.0,0.00016712,2]
[396554984,1765048256126,-500.0,0.00016712,2]
[396554985,1765048256135,-500.0,0.00016712,2]
[396554986,1765048256144,-2770.84,0.00016712,2]
[396554987,1765048256154,-2556.13,0.00016712,2]
[396554988,1765048256163,-500.0,0.00016712,2]
[396554989,1765048256173,-500.0,0.00016712,2]
[396554990,1765048256182,-500.0,0.00016712,2]
[396554991,1765048256192,-1053.4,0.00016712,2]
[396554992,1765048256201,-593.0,0.00016712,2]
[396554993,1765048256211,-782.08,0.00016712,2]
[396554994,1765048256220,-665.23,0.00016712,2]
[396554995,1765048256230,-500.0,0.00016712,2]
[396554996,1765048256240,-500.0,0.00016712,2]
[396554997,1765048256249,-1983.38,0.00016712,2]
[396554998,1765048256259,-590.25288541,0.00016712,2]
[396554999,1765048256268,-528.68,0.00016712,2]
[396555000,1765048256278,-652.84,0.00016712,2]
[396555001,1765048256288,-500.0,0.00016712,2]
[396555002,1765048256299,-544.89,0.00016712,2]
[396555003,1765048256311,-521.03,0.00016712,2]
[396555004,1765048256322,-500.0,0.00016712,2]
[396555005,1765048256334,-500.0,0.00016712,2]
[396555006,1765048256344,-500.0,0.00016712,2]
[396555007,1765048256356,-500.0,0.00016712,2]
[396555008,1765048256366,-500.0,0.00016712,2]
[396555009,1765048256376,-2148.75,0.00016712,2]
[396555010,1765048256385,-500.0,0.00016712,2]
[396555011,1765048256396,-2497.85,0.00016712,2]
[396555012,1765048256405,-1793.7,0.00016712,2]
[396555013,1765048256415,-500.0,0.00016712,2]
[396555014,1765048256425,-500.0,0.00016712,2]
[396555015,1765048256434,-3130.95,0.00016712,2]
[396555016,1765048256443,-500.0,0.00016712,2]
[396555017,1765048256452,-500.0,0.00016712,2]
[396555018,1765048256461,-2185.88,0.00016712,2]
[396555019,1765048256470,-500.0,0.00016712,2]
[396555020,1765048256479,-1899.6,0.00016712,2]
[396555021,1765048256489,-500.0,0.00016712,2]
[396555022,1765048256498,-535.42,0.00016712,2]
[396555023,1765048256508,-2145.67,0.00016712,2]
[396555024,1765048256517,-500.0,0.00016712,2]
[396555025,1765048256527,-977.67,0.00016712,2]
[396555026,1765048256536,-500.0,0.00016712,2]
[396555027,1765048256545,-504.19237834,0.00016712,2]
[396555028,1765048256554,-2309.15,0.00016712,2]
[396555029,1765048256563,-500.0,0.00016712,2]
[396555030,1765048256572,-500.0,0.00016712,2]
[396555031,1765048256581,-1934.31,0.00016712,2]
[396555032,1765048256590,-500.0,0.00016712,2]
[396555033,1765048256598,-500.0,0.00016712,2]
[396555034,1765048256607,-2022.07,0.00016712,2]
[396555035,1765048256616,-500.0,0.00016712,2]
[396555036,1765048256625,-500.0,0.00016712,2]
[396555037,1765048256634,-500.0,0.00016712,2]
[396555038,1765048256642,-500.0,0.00016712,2]
[396555039,1765048256651,-596.4,0.00016712,2]
[396555040,1765048256660,-500.0,0.00016712,2]
[396555041,1765048256669,-500.0,0.00016712,2]
[396555042,1765048256678,-768.26,0.00016712,2]
[396555043,1765048256686,-500.0,0.00016712,2]
[396555044,1765048256695,-500.0,0.00016712,2]
[396555045,1765048256704,-3439.41,0.00016712,2]
[396555046,1765048256713,-540.02,0.00016712,2]
[396555047,1765048256723,-500.0,0.00016712,2]
[396555048,1765048256735,-500.0,0.00016712,2]
[396555049,1765048256743,-809.99,0.00016712,2]
[396555050,1765048256752,-500.0,0.00016712,2]
[396555051,1765048256761,-500.0,0.00016712,2]
[396555052,1765048256770,-2221.72,0.00016712,2]
[396555053,1765048256779,-973.22,0.00016712,2]
[396555054,1765048256788,-706.77,0.00016712,2]
[396555055,1765048256797,-500.0,0.00016712,2]
[396555056,1765048256807,-500.0,0.00016712,2]
[396555057,1765048256816,-607.54435481,0.00016712,2]
[396555058,1765048256842,-533.433,0.00016147,2]
[396555059,1765048256852,-1271.26564519,0.00016712,2]
[396555060,1765048256861,-1714.44,0.00016712,2]
[396555061,1765048256870,-500.0,0.00016712,2]
[396555062,1765048256880,-4.88135461,0.00016712,2]
[396555063,1765048256895,-447.952505,0.00016712,2]
[396555064,1765048256908,-1495.78179057,0.00016712,2]
[396555065,1765048256919,-738.37434982,0.00016712,2]
[396555066,1765048256929,-38.75484907,0.00016712,2]
[396555067,1765048257340,-500.0,0.00016438,2]
[396555068,1765048257349,-1302.92515093,0.00016712,2]
[396555069,1765048257359,-500.0,0.00016712,2]
[396555070,1765048257369,-500.0,0.00016712,2]
[396555071,1765048257379,-468.21902147,0.00016712,2]
[396555072,1765048257389,-500.0,0.00016712,2]
[396555073,1765048257399,-500.0,0.00016712,2]
[396555074,1765048257409,-500.0,0.00016712,2]
[396555075,1765048257419,-841.82,0.00016712,2]
[396555076,1765048257429,-767.44,0.00016712,2]
[396555077,1765048257438,-500.0,0.00016712,2]
[396555078,1765048257448,-500.0,0.00016712,2]
[396555079,1765048257458,-2195.38,0.00016712,2]
[396555080,1765048257467,-500.0,0.00016712,2]
[396555081,1765048257477,-199.62,0.00016712,2]
[396555082,1765048257487,-840.20056416,0.00016713,2]
[396555083,1765048257497,-168.0,0.0001672,2]
[396555084,1765048257507,-2045.687,0.00016721,2]
[396555085,1765048257516,-150.731,0.00016735,2]
[396555086,1765048257526,-3033.50021067,0.00016754,2]